[Event "GER-ch Youth U12w 2019"]
[Site "Willingen"]
[Date "2019.06.12"]
[Round "5.1"]
[White "Zhou, Lepu Coco"]
[Black "Sereda, Yaroslava"]
[Result "1-0"]
[ECO "B39"]
[WhiteElo "1724"]
[BlackElo "1626"]
[Annotator "NA"]
[PlyCount "160"]
[EventDate "2019.06.07"]
[EventType "swiss"]
[EventRounds "9"]
[EventCountry "GER"]
[SourceTitle "playchess.com"]
[Source "ChessBase"]
[SourceQuality "1"]
[TimeControl "40/4500+30:900+30"]

1. e4 {[%emt 0:00:00]} c5 {[%emt 0:00:00]} 2. Nf3 {[%emt 0:00:00]} Nc6 {[%emt 0:00:00]} 3. d4 {[%emt 0:00:00]} cxd4 {[%emt 0:00:00]} 4. Nxd4 {[%emt 0:00:00]} g6 {[%emt 0:00:00]} 5. c4 {[%emt 0:00:00]} Bg7 {[%emt 0:00:00]} 6. Be3 {[%emt 0:00:00]} Nf6 {[%emt 0:00:00]} 7. Nc3 {[%emt 0:00:00]} Ng4 {[%emt 0:00:00]} 8. Nxc6 {[%emt 0:00:00]} Nxe3 {[%emt 0:00:00]} 9. Nxd8 {[%emt 0:00:00]} Nxd1 {[%emt 0:00:00]} 10. Rxd1 {[%emt 0:00:00]} Bxc3+ {[%emt 0:00:00]} 11. bxc3 {[%emt 0:00:00]} Kxd8 {[%emt 0:00:00]} 12. c5 {[%emt 0:00:00]} b6 {[%emt 0:00:00]} 13. c6 {[%emt 0:00:00]} Kc7 {[%emt 0:00:00]} 14. cxd7 {[%emt 0:00:00]} Bxd7 {[%emt 0:00:00]} 15. Bc4 {[%emt 0:00:00]} e6 {[%emt 0:00:00]} 16. O-O {[%emt 0:00:55]} Bc6 {[%emt 0:00:00]} 17. f3 {[%emt 0:01:39]} Rhd8 {[%emt 0:00:10]} 18. Kf2 {[%emt 0:01:04]} Rac8 {[%emt 0:10:27]} 19. Rd4 {[%emt 0:03:12]} Kb7 {[%emt 0:08:01]} 20. Bb3 {[%emt 0:07:11]} Rd7 {[%emt 0:09:00]} 21. Rfd1 {[%emt 0:00:53]} Rcd8 {[%emt 0:01:05]} 22. Kg3 {[%emt 0:01:17]} Kc7 {[%emt 0:43:42]} 23. Kf4 {[%emt 0:02:19]} Re8 {[%emt 0:04:28]} 24. Rxd7+ {[%emt 0:00:18]} Bxd7 {[%emt 0:00:30]} 25. Kg5 {[%emt 0:00:14]} f5 {[%emt 0:02:23]} 26. e5 {[%emt 0:01:56]} Rf8 {[%emt 0:05:04]} 27. Rd6 {[%emt 0:00:54]} f4 {[%emt 0:01:31]} 28. Bxe6 {[%emt 0:03:20]} Bxe6 {[%emt 0:00:14]} 29. Rxe6 {[%emt 0:00:09]} Rf5+ {[%emt 0:00:19]} 30. Kg4 {[%emt 0:01:10]} Kd7 {[%emt 0:01:02]} 31. Rd6+ {[%emt 0:00:50]} Ke7 {[%emt 0:00:52]} 32. Rd4 {[%emt 0:01:10]} Rxe5 {[%emt 0:01:17]} 33. Re4 {[%emt 0:00:11]} Kd6 {[%emt 0:00:31]} 34. Kxf4 {[%emt 0:00:42]} Ra5 {[%emt 0:00:28]} 35. Re2 {[%emt 0:00:39]} Rc5 {[%emt 0:00:15]} 36. Rc2 {[%emt 0:01:12]} b5 {[%emt 0:00:27]} 37. Ke4 {[%emt 0:00:54]} a5 {[%emt 0:00:59]} 38. Kd3 {[%emt 0:00:45]} Rh5 {[%emt 0:00:34]} 39. h3 {[%emt 0:00:46]} Rd5+ {[%emt 0:00:15]} 40. Ke2 {[%emt 0:00:22]} Re5+ {[%emt 0:00:35]} 41. Kd1 {[%emt 0:15:17]} Rc5 {[%emt 0:15:25]} 42. Kc1 {[%emt 0:02:59]} Ke5 {[%emt 0:00:00]} 43. g3 {[%emt 0:00:00]} g5 {[%emt 0:00:00]} 44. Kb2 {[%emt 0:00:00]} h5 {[%emt 0:00:00]} 45. Re2+ {[%emt 0:00:00]} Kf6 {[%emt 0:00:00]} 46. Re8 {[%emt 0:00:00]} Kf7 {[%emt 0:00:00]} 47. Re4 {[%emt 0:00:00]} Kf6 {[%emt 0:00:00]} 48. Kb3 {[%emt 0:00:00]} Rd5 {[%emt 0:00:00]} 49. Re3 {[%emt 0:00:00]} Kf5 {[%emt 0:00:41]} 50. c4 {[%emt 0:00:00]} bxc4+ {[%emt 0:00:19]} 51. Kxc4 {[%emt 0:00:00]} Rd2 {[%emt 0:01:40]} 52. Ra3 {[%emt 0:00:00]} Rc2+ {[%emt 0:01:21]} 53. Kd4 {[%emt 0:00:00]} Rd2+ {[%emt 0:00:25]} 54. Ke3 {[%emt 0:00:00]} Rd5 {[%emt 0:00:27]} 55. Ra4 {[%emt 0:00:00]} Rb5 {[%emt 0:01:40]} 56. h4 {[%emt 0:00:00]} gxh4 {[%emt 0:01:15]} 57. Rxh4 {[%emt 0:00:00]} Kg6 {[%emt 0:00:29]} 58. g4 {[%emt 0:00:00]} hxg4 {[%emt 0:00:23]} 59. Rxg4+ {[%emt 0:00:00]} Kf5 {[%emt 0:00:15]} 60. Ra4 {[%emt 0:00:00]} Re5+ {[%emt 0:00:42]} 61. Kd3 {[%emt 0:00:00]} Rd5+ {[%emt 0:00:31]} 62. Rd4 {[%emt 0:00:00]} Rc5 {[%emt 0:00:21]} 63. f4 {[%emt 0:00:00]} Rb5 {[%emt 0:00:39]} 64. Ra4 {[%emt 0:00:00]} Kf6 {[%emt 0:00:36]} 65. Rc4 {[%emt 0:00:00]} Kf5 {[%emt 0:00:31]} 66. Ke3 {[%emt 0:00:00]} Rd5 {[%emt 0:00:33]} 67. a4 {[%emt 0:00:00]} Kf6 {[%emt 0:00:21]} 68. Ke4 {[%emt 0:00:00]} Rh5 {[%emt 0:00:38]} 69. Kd4 {[%emt 0:00:00]} Rh4 {[%emt 0:00:32]} 70. Kc5 {[%emt 0:00:15]} Rh5+ {[%emt 0:00:16]} 71. Kb6 {[%emt 0:00:08]} Rf5 {[%emt 0:00:21]} 72. Rc5 {[%emt 0:00:40]} Rxf4 {[%emt 0:00:07]} 73. Kxa5 {[%emt 0:00:07]} Rf1 {[%emt 0:00:38]} 74. Kb6 {[%emt 0:00:27]} Rb1+ {[%emt 0:00:52]} 75. Rb5 {[%emt 0:00:10]} Re1 {[%emt 0:00:40]} 76. a5 {[%emt 0:00:20]} Re6+ {[%emt 0:00:20]} 77. Ka7 {[%emt 0:00:08]} Ke7 {[%emt 0:00:45]} 78. Rb6 {[%emt 0:00:41]} Re5 {[%emt 0:00:14]} 79. a6 {[%emt 0:00:12]} Kd7 {[%emt 0:00:28] normal} 80. Kb7 {[%emt 0:00:14]} Rc5 {[%emt 0:00:24] normal} 1-0

[Event "GER-ch Youth U12w 2019"]
[Site "Willingen"]
[Date "2019.06.12"]
[Round "5.2"]
[White "Pohle, Saskia"]
[Black "Braeutigam, Katerina"]
[Result "0-1"]
[ECO "B10"]
[WhiteElo "1819"]
[BlackElo "1697"]
[Annotator "NA"]
[PlyCount "85"]
[EventDate "2019.06.07"]
[EventType "swiss"]
[EventRounds "9"]
[EventCountry "GER"]
[SourceTitle "playchess.com"]
[Source "ChessBase"]
[SourceQuality "1"]
[TimeControl "40/4500+30:900+30"]

1. e4 {[%emt 0:00:00]} c6 {[%emt 0:00:00]} 2. Nc3 {[%emt 0:00:00]} d5 {[%emt 0:00:00]} 3. Nf3 {[%emt 0:00:00]} d4 {[%emt 0:00:00]} 4. Ne2 {[%emt 0:00:00]} c5 {[%emt 0:00:00]} 5. d3 {[%emt 0:00:00]} Nc6 {[%emt 0:00:00]} 6. h3 {[%emt 0:00:00]} e5 {[%emt 0:00:00]} 7. Bd2 {[%emt 0:00:00]} Nf6 {[%emt 0:00:00]} 8. g4 {[%emt 0:00:00]} h6 {[%emt 0:00:00]} 9. Ng3 {[%emt 0:00:00]} Be6 {[%emt 0:00:00]} 10. Qe2 {[%emt 0:00:00]} b5 {[%emt 0:11:56]} 11. Bg2 {[%emt 0:00:00]} Qc7 {[%emt 0:09:09]} 12. a3 {[%emt 0:03:05]} c4 {[%emt 0:04:30]} 13. O-O {[%emt 0:02:22]} g6 {[%emt 0:06:22]} 14. a4 {[%emt 0:06:06]} Qb7 {[%emt 0:06:39]} 15. axb5 {[%emt 0:07:02]} Qxb5 {[%emt 0:00:15]} 16. Rab1 {[%emt 0:01:46]} cxd3 {[%emt 0:03:19]} 17. cxd3 {[%emt 0:00:10]} Ba2 {[%emt 0:01:51]} 18. Rbc1 {[%emt 0:00:22]} Bg7 {[%emt 0:01:58]} 19. Nh2 {[%emt 0:01:10]} O-O {[%emt 0:02:12]} 20. f4 {[%emt 0:03:40]} exf4 {[%emt 0:03:11]} 21. Bxf4 {[%emt 0:00:17]} g5 {[%emt 0:06:06]} 22. Bd6 {[%emt 0:03:29]} Rfd8 {[%emt 0:01:02]} 23. Nf5 {[%emt 0:01:25]} Rac8 {[%emt 0:07:45]} 24. Nxg7 {[%emt 0:07:34]} Kxg7 {[%emt 0:05:41]} 25. e5 {[%emt 0:01:50]} Ne8 {[%emt 0:03:50]} 26. Bc5 {[%emt 0:13:31]} Nb4 {[%emt 0:06:01]} 27. Bxb4 {[%emt 0:01:11]} Qxb4 {[%emt 0:00:08]} 28. Nf3 {[%emt 0:03:53]} Rb8 {[%emt 0:03:08]} 29. Rc2 {[%emt 0:06:47]} Bb3 {[%emt 0:00:55]} 30. Rd2 {[%emt 0:00:38]} Nc7 {[%emt 0:00:34]} 31. Qf2 {[%emt 0:01:30]} Ne6 {[%emt 0:01:33]} 32. h4 {[%emt 0:04:50]} Qe7 {[%emt 0:01:33]} 33. h5 {[%emt 0:01:16]} Rbc8 {[%emt 0:00:42]} 34. Re1 {[%emt 0:01:43]} Qb4 {[%emt 0:00:38]} 35. Nh4 {[%emt 0:00:58]} gxh4 {[%emt 0:00:45]} 36. Qf6+ {[%emt 0:00:11]} Kg8 {[%emt 0:00:07]} 37. Rf1 {[%emt 0:00:46]} Ng5 {[%emt 0:00:49]} 38. Rdf2 {[%emt 0:00:53]} Qf8 {[%emt 0:00:19] normal} 39. Re2 {[%emt 0:04:13] normal} Qg7 {[%emt 0:00:38]} 40. Qe7 {[%emt 0:00:20]} a6 {[%emt 0:00:44] normal} 41. Bb7 {[%emt 0:15:55] normal} Rb8 {[%emt 0:00:00]} 42. Bxa6 {[%emt 0:00:00] normal} Be6 {[%emt 0:00:00]} 43. Rg2 {[%emt 0:00:00] normal} 0-1

[Event "GER-ch Youth U12w 2019"]
[Site "Willingen"]
[Date "2019.06.12"]
[Round "5.3"]
[White "Roncea, Andrea-Alexandra"]
[Black "Keymer, Cecilia"]
[Result "1/2-1/2"]
[ECO "C50"]
[WhiteElo "1558"]
[BlackElo "1511"]
[Annotator "NA"]
[PlyCount "71"]
[EventDate "2019.06.07"]
[EventType "swiss"]
[EventRounds "9"]
[EventCountry "GER"]
[SourceTitle "playchess.com"]
[Source "ChessBase"]
[SourceQuality "1"]
[TimeControl "40/4500+30:900+30"]

1. e4 {[%emt 0:00:00]} e5 {[%emt 0:00:00]} 2. Nf3 {[%emt 0:00:00]} Nc6 {[%emt 0:00:00]} 3. Bc4 {[%emt 0:00:00]} Bc5 {[%emt 0:00:00]} 4. d3 {[%emt 0:00:00]} Nf6 {[%emt 0:00:00]} 5. Bb3 {[%emt 0:00:00]} a6 {[%emt 0:00:00]} 6. O-O {[%emt 0:00:00]} Ba7 {[%emt 0:00:00]} 7. Nbd2 {[%emt 0:00:00]} d6 {[%emt 0:00:00]} 8. c3 {[%emt 0:00:00]} h6 {[%emt 0:00:00]} 9. Bc2 {[%emt 0:00:00]} Be6 {[%emt 0:00:00]} 10. a3 {[%emt 0:00:00]} O-O {[%emt 0:00:00]} 11. h3 {[%emt 0:00:00]} Re8 {[%emt 0:00:00]} 12. Re1 {[%emt 0:00:00]} Qd7 {[%emt 0:04:30]} 13. Nf1 {[%emt 0:00:00]} Rad8 {[%emt 0:07:28]} 14. d4 {[%emt 0:00:00]} exd4 {[%emt 0:02:07]} 15. cxd4 {[%emt 0:00:00]} d5 {[%emt 0:03:17]} 16. e5 {[%emt 0:01:21]} Nh7 {[%emt 0:02:58]} 17. Be3 {[%emt 0:03:02]} Bf5 {[%emt 0:03:00]} 18. Bxf5 {[%emt 0:03:42]} Qxf5 {[%emt 0:00:14]} 19. Ng3 {[%emt 0:00:36]} Qd7 {[%emt 0:03:44]} 20. Qd2 {[%emt 0:11:48]} Ne7 {[%emt 0:09:44]} 21. Nh4 {[%emt 0:06:32]} Nf8 {[%emt 0:12:08]} 22. Nh5 {[%emt 0:04:30]} Nf5 {[%emt 0:04:05]} 23. Nxf5 {[%emt 0:01:50]} Qxf5 {[%emt 0:00:10]} 24. g4 {[%emt 0:00:54]} Qg6 {[%emt 0:01:45]} 25. f4 {[%emt 0:03:03]} f5 {[%emt 0:01:59]} 26. exf6 {[%emt 0:00:32]} gxf6 {[%emt 0:02:32]} 27. f5 {[%emt 0:01:30]} Qf7 {[%emt 0:01:17]} 28. Bxh6 {[%emt 0:01:23]} Re4 {[%emt 0:02:48]} 29. Be3 {[%emt 0:04:58]} Nh7 {[%emt 0:01:17]} 30. Ng3 {[%emt 0:02:14]} Ng5 {[%emt 0:06:57]} 31. Qg2 {[%emt 0:06:03]} Rxe3 {[%emt 0:01:08]} 32. Rxe3 {[%emt 0:01:27]} Bxd4 {[%emt 0:00:11]} 33. Nf1 {[%emt 0:01:06]} Bxe3+ {[%emt 0:03:40]} 34. Nxe3 {[%emt 0:02:57]} Ne4 {[%emt 0:02:36]} 35. Re1 {[%emt 0:05:25]} c6 {[%emt 0:01:31]} 36. h4 {[%emt 0:04:05] normal} 1/2-1/2

[Event "GER-ch Youth U12w 2019"]
[Site "Willingen"]
[Date "2019.06.12"]
[Round "5.4"]
[White "Voigt, Anastasia"]
[Black "Wilmink, Anna"]
[Result "0-1"]
[ECO "B34"]
[WhiteElo "1447"]
[BlackElo "1466"]
[Annotator "NA"]
[PlyCount "65"]
[EventDate "2019.06.07"]
[EventType "swiss"]
[EventRounds "9"]
[EventCountry "GER"]
[SourceTitle "playchess.com"]
[Source "ChessBase"]
[SourceQuality "1"]
[TimeControl "40/4500+30:900+30"]

1. e4 {[%emt 0:00:00]} c5 {[%emt 0:00:00]} 2. Nf3 {[%emt 0:00:00]} Nc6 {[%emt 0:00:00]} 3. d4 {[%emt 0:00:00]} cxd4 {[%emt 0:00:00]} 4. Nxd4 {[%emt 0:00:00]} g6 {[%emt 0:00:00]} 5. Nc3 {[%emt 0:00:00]} Bg7 {[%emt 0:00:00]} 6. Be3 {[%emt 0:00:00]} Nf6 {[%emt 0:00:00]} 7. f3 {[%emt 0:00:00]} O-O {[%emt 0:00:00]} 8. Qd2 {[%emt 0:00:00]} d5 {[%emt 0:00:00]} 9. Nxc6 {[%emt 0:05:59]} bxc6 {[%emt 0:00:00]} 10. Rd1 {[%emt 0:06:38]} Be6 {[%emt 0:00:00]} 11. e5 {[%emt 0:07:24]} Nd7 {[%emt 0:00:00]} 12. f4 {[%emt 0:01:24]} Nb6 {[%emt 0:02:07]} 13. Be2 {[%emt 0:02:22]} Qc7 {[%emt 0:04:16]} 14. O-O {[%emt 0:01:12]} Rfd8 {[%emt 0:02:11]} 15. Qe1 {[%emt 0:02:03]} Bf5 {[%emt 0:07:53]} 16. Bd3 {[%emt 0:02:48]} d4 {[%emt 0:05:52]} 17. Bxf5 {[%emt 0:00:30]} dxc3 {[%emt 0:01:11]} 18. Be4 {[%emt 0:03:27]} cxb2 {[%emt 0:03:32]} 19. Bd4 {[%emt 0:05:38]} Nc8 {[%emt 0:09:08]} 20. c3 {[%emt 0:08:20]} Rb8 {[%emt 0:07:42]} 21. Qe3 {[%emt 0:04:18]} a5 {[%emt 0:06:09]} 22. Bc2 {[%emt 0:01:40]} a4 {[%emt 0:04:19]} 23. a3 {[%emt 0:05:35]} Nb6 {[%emt 0:03:12]} 24. Bxb6 {[%emt 0:02:29]} Rxb6 {[%emt 0:01:03]} 25. Rb1 {[%emt 0:01:29]} Ra8 {[%emt 0:02:04]} 26. Rf2 {[%emt 0:01:09]} Rab8 {[%emt 0:03:18]} 27. Bxa4 {[%emt 0:06:20]} Ra6 {[%emt 0:03:27]} 28. Bd1 {[%emt 0:00:48]} Rxa3 {[%emt 0:01:24]} 29. Rfxb2 {[%emt 0:00:36]} Rxb2 {[%emt 0:00:43]} 30. Rxb2 {[%emt 0:00:31]} Ra1 {[%emt 0:00:17]} 31. Qd3 {[%emt 0:01:57]} Qa7+ {[%emt 0:02:20]} 32. Kf1 {[%emt 0:00:35]} Qa4 {[%emt 0:03:30]} 33. Ke2 {[%emt 0:10:50] normal} 0-1

[Event "GER-ch Youth U12w 2019"]
[Site "Willingen"]
[Date "2019.06.12"]
[Round "5.5"]
[White "Hubert, Charlotte"]
[Black "Peglau, Charis"]
[Result "0-1"]
[ECO "C47"]
[WhiteElo "1311"]
[BlackElo "1514"]
[Annotator "NA"]
[PlyCount "137"]
[EventDate "2019.06.07"]
[EventType "swiss"]
[EventRounds "9"]
[EventCountry "GER"]
[SourceTitle "playchess.com"]
[Source "ChessBase"]
[SourceQuality "1"]
[TimeControl "40/4500+30:900+30"]

1. e4 {[%emt 0:00:00]} e5 {[%emt 0:00:00]} 2. Nf3 {[%emt 0:00:00]} Nc6 {[%emt 0:00:00]} 3. Nc3 {[%emt 0:00:00]} Nf6 {[%emt 0:00:00]} 4. d4 {[%emt 0:00:00]} Bb4 {[%emt 0:00:00]} 5. Nxe5 {[%emt 0:00:00]} Qe7 {[%emt 0:00:00]} 6. Nxc6 {[%emt 0:00:00]} Bxc3+ {[%emt 0:00:00]} 7. bxc3 {[%emt 0:00:00]} Qxe4+ {[%emt 0:00:00]} 8. Qe2 {[%emt 0:00:00]} dxc6 {[%emt 0:00:00]} 9. Qxe4+ {[%emt 0:21:25]} Nxe4 {[%emt 0:00:00]} 10. Bb2 {[%emt 0:01:56]} O-O {[%emt 0:00:00]} 11. Bd3 {[%emt 0:00:40]} Re8 {[%emt 0:00:00]} 12. O-O {[%emt 0:00:38]} Bd7 {[%emt 0:00:00]} 13. Rfe1 {[%emt 0:03:57]} Nf6 {[%emt 0:00:00]} 14. Rad1 {[%emt 0:02:34]} Nd5 {[%emt 0:00:00]} 15. Bc4 {[%emt 0:23:24]} Rad8 {[%emt 0:01:39]} 16. Bb3 {[%emt 0:03:40]} Bg4 {[%emt 0:03:07]} 17. Rb1 {[%emt 0:09:10]} Nf4 {[%emt 0:02:00]} 18. Kf1 {[%emt 0:04:13]} Be2+ {[%emt 0:01:08]} 19. Kg1 {[%emt 0:00:09]} Bg4 {[%emt 0:07:08]} 20. Kf1 {[%emt 0:02:30]} h6 {[%emt 0:02:54]} 21. h3 {[%emt 0:01:20]} Bf5 {[%emt 0:00:20]} 22. Rbd1 {[%emt 0:03:19]} c5 {[%emt 0:05:25]} 23. Rc1 {[%emt 0:03:00]} c6 {[%emt 0:08:33]} 24. a3 {[%emt 0:01:49]} Be4 {[%emt 0:04:27]} 25. f3 {[%emt 0:00:54]} Bf5 {[%emt 0:00:40]} 26. Rcd1 {[%emt 0:01:57]} c4 {[%emt 0:02:41]} 27. Bxc4 {[%emt 0:00:19]} Bxc2 {[%emt 0:00:11]} 28. Rxe8+ {[%emt 0:00:33]} Rxe8 {[%emt 0:00:07]} 29. Rd2 {[%emt 0:00:28]} Bf5 {[%emt 0:00:16]} 30. Bc1 {[%emt 0:01:10]} Be6 {[%emt 0:01:56]} 31. Bxe6 {[%emt 0:00:33]} Rxe6 {[%emt 0:00:20]} 32. Rd1 {[%emt 0:00:22]} Nd5 {[%emt 0:00:26]} 33. c4 {[%emt 0:00:39]} Nb6 {[%emt 0:00:15]} 34. c5 {[%emt 0:00:22]} Nd5 {[%emt 0:01:39]} 35. Re1 {[%emt 0:00:15]} Rxe1+ {[%emt 0:02:01]} 36. Kxe1 {[%emt 0:00:05]} Kf8 {[%emt 0:00:15]} 37. Ke2 {[%emt 0:00:21]} Ke7 {[%emt 0:00:08]} 38. Kd3 {[%emt 0:00:17]} Ke6 {[%emt 0:00:22]} 39. Ke4 {[%emt 0:01:15]} Kf6 {[%emt 0:01:37]} 40. h4 {[%emt 0:01:06]} Ke6 {[%emt 0:01:42]} 41. Bd2 {[%emt 0:00:00]} Nf6+ {[%emt 0:00:00]} 42. Kd3 {[%emt 0:00:00]} Kd5 {[%emt 0:00:00]} 43. Bc1 {[%emt 0:00:00]} b6 {[%emt 0:00:00]} 44. cxb6 {[%emt 0:00:00]} axb6 {[%emt 0:00:00]} 45. Bd2 {[%emt 0:03:21]} b5 {[%emt 0:00:00]} 46. Bc1 {[%emt 0:09:28]} Nd7 {[%emt 0:00:00]} 47. Bb2 {[%emt 0:01:09]} Nb6 {[%emt 0:02:35]} 48. Bc1 {[%emt 0:01:48]} Na4 {[%emt 0:02:21]} 49. g3 {[%emt 0:01:58]} h5 {[%emt 0:02:04]} 50. g4 {[%emt 0:00:52]} g6 {[%emt 0:00:04]} 51. g5 {[%emt 0:00:51]} Nb6 {[%emt 0:01:18]} 52. Bf4 {[%emt 0:01:08]} Nc4 {[%emt 0:02:05]} 53. Bc1 {[%emt 0:00:09]} Nd6 {[%emt 0:00:31]} 54. Be3 {[%emt 0:00:25]} Nb7 {[%emt 0:05:57]} 55. Bf2 {[%emt 0:00:38]} Ke6 {[%emt 0:03:58]} 56. Be3 {[%emt 0:00:55]} Nd6 {[%emt 0:00:34]} 57. Ke2 {[%emt 0:00:29]} Nb7 {[%emt 0:02:17]} 58. Kd3 {[%emt 0:00:16]} Nd6 {[%emt 0:00:46]} 59. Ke2 {[%emt 0:00:14]} Nc8 {[%emt 0:00:16]} 60. Kd3 {[%emt 0:00:11]} Kf5 {[%emt 0:00:18]} 61. Ke2 {[%emt 0:00:27]} Nb6 {[%emt 0:00:22]} 62. Kd3 {[%emt 0:00:21]} Nd5 {[%emt 0:00:14]} 63. Bc1 {[%emt 0:00:15]} Nf4+ {[%emt 0:06:33]} 64. Ke3 {[%emt 0:00:12]} Ng2+ {[%emt 0:00:14]} 65. Kf2 {[%emt 0:00:13]} Nf4 {[%emt 0:01:14]} 66. Ke3 {[%emt 0:00:36]} Nd5+ {[%emt 0:02:19]} 67. Kd3 {[%emt 0:00:34]} f6 {[%emt 0:00:37]} 68. Bd2 {[%emt 0:01:21]} fxg5 {[%emt 0:02:50]} 69. Bxg5 {[%emt 0:00:07] normal} 0-1

[Event "GER-ch Youth U12w 2019"]
[Site "Willingen"]
[Date "2019.06.12"]
[Round "5.6"]
[White "Ding, Tina"]
[Black "Fischer, Darja"]
[Result "0-1"]
[ECO "B20"]
[WhiteElo "1180"]
[BlackElo "1480"]
[Annotator "NA"]
[PlyCount "75"]
[EventDate "2019.06.07"]
[EventType "swiss"]
[EventRounds "9"]
[EventCountry "GER"]
[SourceTitle "playchess.com"]
[Source "ChessBase"]
[SourceQuality "1"]
[TimeControl "40/4500+30:900+30"]

1. e4 {[%emt 0:00:00]} c5 {[%emt 0:00:00]} 2. c4 {[%emt 0:00:00]} Nc6 {[%emt 0:00:00]} 3. Nc3 {[%emt 0:00:00]} d6 {[%emt 0:00:00]} 4. g3 {[%emt 0:00:00]} Nf6 {[%emt 0:00:00]} 5. d3 {[%emt 0:00:00]} g6 {[%emt 0:01:44]} 6. Bg2 {[%emt 0:00:00]} Bg7 {[%emt 0:01:32]} 7. Nge2 {[%emt 0:00:00]} O-O {[%emt 0:03:36]} 8. O-O {[%emt 0:00:00]} Rb8 {[%emt 0:08:40]} 9. Rb1 {[%emt 0:00:00]} b6 {[%emt 0:01:46]} 10. Bf4 {[%emt 0:00:25]} Bb7 {[%emt 0:02:04]} 11. a3 {[%emt 0:01:33]} Nd7 {[%emt 0:05:24]} 12. Qd2 {[%emt 0:01:31]} Nde5 {[%emt 0:04:05]} 13. b4 {[%emt 0:01:45]} Qd7 {[%emt 0:04:16]} 14. b5 {[%emt 0:04:09]} Nd8 {[%emt 0:04:03]} 15. Bh6 {[%emt 0:04:31]} f5 {[%emt 0:06:36]} 16. Bxg7 {[%emt 0:02:32]} Kxg7 {[%emt 0:00:25]} 17. h3 {[%emt 0:02:30]} fxe4 {[%emt 0:01:12]} 18. Nxe4 {[%emt 0:04:03]} Bxe4 {[%emt 0:07:59]} 19. dxe4 {[%emt 0:00:27]} Nf3+ {[%emt 0:02:22]} 20. Bxf3 {[%emt 0:00:39]} Rxf3 {[%emt 0:02:42]} 21. Qb2+ {[%emt 0:01:03]} e5 {[%emt 0:02:57]} 22. Kg2 {[%emt 0:01:26]} Rf6 {[%emt 0:04:25]} 23. f4 {[%emt 0:01:43]} Nf7 {[%emt 0:01:47]} 24. Rbd1 {[%emt 0:03:54]} Qe6 {[%emt 0:01:57]} 25. g4 {[%emt 0:02:37]} Qxc4 {[%emt 0:02:28]} 26. Ng3 {[%emt 0:03:33]} Kg8 {[%emt 0:03:36]} 27. fxe5 {[%emt 0:02:16]} Rxf1 {[%emt 0:00:41]} 28. Rxf1 {[%emt 0:00:34]} dxe5 {[%emt 0:01:05]} 29. Rd1 {[%emt 0:01:59]} Qe6 {[%emt 0:01:59]} 30. Rd5 {[%emt 0:04:05]} Rd8 {[%emt 0:01:35]} 31. Rxd8+ {[%emt 0:01:03]} Nxd8 {[%emt 0:00:03]} 32. Kf3 {[%emt 0:00:34]} Nf7 {[%emt 0:01:06]} 33. h4 {[%emt 0:00:51]} Qc4 {[%emt 0:00:42]} 34. Ne2 {[%emt 0:01:10]} Qd3+ {[%emt 0:00:35]} 35. Kf2 {[%emt 0:00:39]} Qxe4 {[%emt 0:00:25]} 36. Kg3 {[%emt 0:00:36]} c4 {[%emt 0:01:41]} 37. Nc3 {[%emt 0:02:21]} Qd3+ {[%emt 0:00:39]} 38. Kf2 {[%emt 0:00:38] normal} 0-1

[Event "GER-ch Youth U12w 2019"]
[Site "Willingen"]
[Date "2019.06.12"]
[Round "5.7"]
[White "Trunz, Michelle"]
[Black "Petrosyan, Ani"]
[Result "1/2-1/2"]
[ECO "B14"]
[WhiteElo "1505"]
[BlackElo "1378"]
[Annotator "NA"]
[PlyCount "56"]
[EventDate "2019.06.07"]
[EventType "swiss"]
[EventRounds "9"]
[EventCountry "GER"]
[SourceTitle "playchess.com"]
[Source "ChessBase"]
[SourceQuality "1"]
[TimeControl "40/4500+30:900+30"]

1. e4 {[%emt 0:00:00]} c6 {[%emt 0:00:00]} 2. d4 {[%emt 0:00:00]} d5 {[%emt 0:00:00]} 3. exd5 {[%emt 0:00:00]} cxd5 {[%emt 0:00:00]} 4. c4 {[%emt 0:00:00]} Nf6 {[%emt 0:00:00]} 5. Nc3 {[%emt 0:00:00]} g6 {[%emt 0:00:00]} 6. Nf3 {[%emt 0:00:00]} Bg7 {[%emt 0:00:00]} 7. Bg5 {[%emt 0:00:00]} O-O {[%emt 0:00:00]} 8. Bxf6 {[%emt 0:00:00]} Bxf6 {[%emt 0:00:00]} 9. Nxd5 {[%emt 0:00:00]} Bg7 {[%emt 0:00:00]} 10. Qd2 {[%emt 0:00:00]} Nc6 {[%emt 0:00:00]} 11. Rd1 {[%emt 0:00:00]} Bg4 {[%emt 0:00:00]} 12. Qg5 {[%emt 0:17:44]} Bxf3 {[%emt 0:00:00]} 13. gxf3 {[%emt 0:00:21]} e6 {[%emt 0:01:17]} 14. Qxd8 {[%emt 0:01:03]} Rfxd8 {[%emt 0:00:14]} 15. Nc7 {[%emt 0:08:44]} Rac8 {[%emt 0:01:05]} 16. d5 {[%emt 0:03:37]} Rxc7 {[%emt 0:04:56]} 17. dxc6 {[%emt 0:00:15]} Rxd1+ {[%emt 0:00:17]} 18. Kxd1 {[%emt 0:00:08]} Rxc6 {[%emt 0:00:05]} 19. b3 {[%emt 0:00:56]} Rd6+ {[%emt 0:00:36]} 20. Ke2 {[%emt 0:01:33]} Bc3 {[%emt 0:04:56]} 21. a3 {[%emt 0:00:48]} Rd2+ {[%emt 0:00:25]} 22. Ke3 {[%emt 0:00:13]} e5 {[%emt 0:00:20]} 23. Bd3 {[%emt 0:01:00]} f5 {[%emt 0:00:34]} 24. Rc1 {[%emt 0:01:00]} f4+ {[%emt 0:03:52]} 25. Ke4 {[%emt 0:00:06]} Bb2 {[%emt 0:01:10]} 26. Rc2 {[%emt 0:00:10]} Rxc2 {[%emt 0:01:04]} 27. Bxc2 {[%emt 0:00:04]} Bd4 {[%emt 0:01:55]} 28. Kd5 {[%emt 0:01:19]} Kf7 {[%emt 0:01:49] normal} 1/2-1/2